fUST/lending_fUST_20250801
["ID","MTS","AMOUNT","RATE_DAILY","PERIOD"]
[376513218,1754003451745,-460.0,0.00021095,2]
[376513219,1754003451755,-460.0,0.00021095,2]
[376513220,1754003451765,-1017.0,0.00021095,2]
[376513221,1754003451774,-460.0,0.00021095,2]
[376513222,1754003451784,-478.58,0.00021095,2]
[376513223,1754003451794,-460.0,0.00021095,2]
[376513224,1754003451804,-582.11,0.00021095,2]
[376513225,1754003451814,-460.0,0.00021095,2]
[376513226,1754003451824,-589.92,0.00021095,2]
[376513227,1754003451834,-460.0,0.00021095,2]
[376513228,1754003451844,-2002.44,0.00021095,2]
[376513229,1754003451854,-460.0,0.00021095,2]
[376513230,1754003451864,-460.0,0.00021095,2]
[376513231,1754003451876,-460.0,0.00021095,2]
[376513232,1754003451889,-1075.79,0.00021095,2]
[376513233,1754003451899,-469.04,0.00021095,2]
[376513234,1754003451909,-529.38,0.00021095,2]
[376513235,1754003451921,-746.47,0.00021095,2]
[376513236,1754003451932,-460.0,0.00021095,2]
[376513237,1754003451942,-545.42,0.00021095,2]
[376513238,1754003451953,-460.0,0.00021095,2]
[376513239,1754003451965,-460.0,0.00021095,2]
[376513240,1754003451975,-634.35,0.00021095,2]
[376513241,1754003451984,-1276.49,0.00021095,2]
[376513242,1754003451995,-460.0,0.00021095,2]
[376513243,1754003452005,-460.0,0.00021095,2]
[376513244,1754003452015,-1321.52,0.00021095,2]
[376513245,1754003452024,-460.0,0.00021095,2]
[376513246,1754003452034,-610.78,0.00021095,2]
[376513247,1754003452044,-460.0,0.00021095,2]
[376513248,1754003452054,-606.53,0.00021095,2]
[376513249,1754003452064,-1529.08,0.00021095,2]
[376513250,1754003452073,-588.71,0.00021095,2]
[376513251,1754003452083,-1215.59,0.00021095,2]
[376513252,1754003452093,-3875.56,0.00021095,2]
[376513253,1754003452103,-843.86,0.00021095,2]
[376513254,1754003452113,-999.44,0.00021095,2]
[376513255,1754003452123,-1744.97,0.00021095,2]
[376513256,1754003452132,-600.0,0.00021099,2]
[376513257,1754003452142,-242.207,0.00021135,2]
[376513258,1754003452152,-161.0906166,0.00021205,2]
[376513259,1754003452161,-431.24608568,0.000213,2]
[376513260,1754003452171,-500.0,0.000213,2]
[376513261,1754003452181,-500.0,0.000213,2]
[376513262,1754003452191,-271.1829761,0.00021314,2]
[376513263,1754003452201,-500.0,0.00021314,2]
[376513264,1754003452211,-2200.0,0.00021327,2]
[376513265,1754003452220,-1140.63927519,0.0002135,2]
[376513266,1754003452230,-160.835054,0.00021355,2]
[376513267,1754003452241,-500.0,0.00021367,2]
[376513268,1754003452251,-737.56907738,0.00021367,2]
[376513269,1754003452260,-161.11795918,0.00021367,2]
[376513270,1754003452270,-737.56907738,0.00021367,2]
[376513271,1754003452279,-737.56907738,0.00021367,2]
[376513272,1754003452289,-737.56907738,0.00021367,2]
[376513273,1754003452299,-737.56907738,0.00021367,2]
[376513274,1754003452309,-737.56907738,0.00021367,2]
[376513275,1754003452318,-737.56907738,0.00021367,2]
[376513276,1754003452328,-737.56907738,0.00021367,2]
[376513277,1754003452338,-737.56907738,0.00021367,2]
[376513278,1754003452348,-737.56907738,0.00021367,2]
[376513279,1754003452358,-737.56907738,0.00021367,2]
[376513280,1754003452368,-251.19887833,0.00021369,2]
[376513281,1754003452378,-460.0,0.00021369,2]
[376513282,1754003452387,-1266.97,0.00021369,2]
[376513283,1754003452397,-502.84,0.00021369,2]
[376513284,1754003452407,-311.05405024,0.00021369,2]
[376513285,1754003452418,-1808.35,0.00021369,2]
[376513286,1754003452428,-460.0,0.00021369,2]
[376513287,1754003452438,-460.0,0.00021369,2]
[376513288,1754003452448,-460.0,0.00021369,2]
[376513289,1754003452458,-462.57,0.00021369,2]
[376513290,1754003452468,-460.0,0.00021369,2]
[376513291,1754003452479,-460.0,0.00021369,2]
[376513292,1754003452489,-1017.0,0.00021369,2]
[376513293,1754003452499,-460.0,0.00021369,2]
[376513294,1754003452509,-478.58,0.00021369,2]
[376513295,1754003452520,-460.0,0.00021369,2]
[376513296,1754003452676,-582.11,0.00021369,2]
[376513297,1754003452686,-460.0,0.00021369,2]
[376513298,1754003452695,-589.92,0.00021369,2]
[376513299,1754003452707,-460.0,0.00021369,2]
[376513300,1754003452716,-2002.44,0.00021369,2]
[376513301,1754003452727,-460.0,0.00021369,2]
[376513302,1754003452736,-460.0,0.00021369,2]
[376513303,1754003452745,-460.0,0.00021369,2]
[376513304,1754003452756,-1075.79,0.00021369,2]
[376513305,1754003452767,-469.04,0.00021369,2]
[376513306,1754003452777,-529.38,0.00021369,2]
[376513307,1754003452787,-746.47,0.00021369,2]
[376513308,1754003452797,-460.0,0.00021369,2]
[376513309,1754003452807,-545.42,0.00021369,2]
[376513310,1754003452816,-460.0,0.00021369,2]
[376513311,1754003452826,-430.36543744,0.00021369,2]
[376513312,1754003452836,-634.35,0.00021369,2]
[376513313,1754003452845,-1276.49,0.00021369,2]
[376513314,1754003452854,-460.0,0.00021369,2]
[376513315,1754003452863,-460.0,0.00021369,2]
[376513316,1754003452873,-1321.52,0.00021369,2]
[376513317,1754003452885,-460.0,0.00021369,2]
[376513318,1754003452895,-610.78,0.00021369,2]
[376513319,1754003452904,-460.0,0.00021369,2]
[376513320,1754003452915,-606.53,0.00021369,2]
[376513321,1754003452924,-1529.08,0.00021369,2]
[376513322,1754003452934,-588.71,0.00021369,2]
[376513323,1754003452943,-1215.59,0.00021369,2]
[376513324,1754003452955,-3875.56,0.00021369,2]
[376513325,1754003452964,-843.86,0.00021369,2]
[376513326,1754003452974,-999.44,0.00021369,2]
[376513327,1754003452983,-1744.97,0.00021369,2]
[376513328,1754003452992,-445.0,0.000214,2]
[376513329,1754003453002,-260.0,0.00021415,2]
[376513330,1754003453013,-200.0,0.00021472,15]
[376513331,1754003453024,-200.0,0.00021472,15]
[376513332,1754003453034,-200.0,0.00021472,15]
[376513333,1754003453044,-200.0,0.00021472,15]
[376513334,1754003453053,-200.0,0.00021472,15]
[376513335,1754003453063,-200.0,0.00021472,15]
[376513336,1754003453072,-200.0,0.00021472,15]
[376513337,1754003453081,-200.0,0.00021472,15]
[376513338,1754003453092,-200.0,0.00021472,15]
[376513339,1754003453102,-200.0,0.00021472,15]
[376513340,1754003453112,-240.0,0.00021472,15]
[376513341,1754003453122,-161.0906166,0.00021479,2]
[376513342,1754003453132,-400.0,0.00021484,2]
[376513343,1754003453141,-500.0,0.00021541,2]
[376513344,1754003453150,-500.0,0.00021541,2]
[376513345,1754003453159,-500.0,0.00021541,2]
[376513346,1754003453168,-500.0,0.00021541,2]
[376513347,1754003453178,-500.0,0.00021541,2]
[376513348,1754003453187,-500.90161532,0.00021541,2]
[376513349,1754003453196,-500.0,0.00021541,2]
[376513350,1754003453205,-500.0,0.00021541,2]
[376513351,1754003453214,-501.38135654,0.00021541,2]
[376513352,1754003453224,-500.0,0.00021541,2]
[376513353,1754003453233,-500.0,0.00021541,2]
[376513354,1754003453243,-500.0,0.00021541,2]
[376513355,1754003453252,-500.0,0.00021541,2]
[376513356,1754003453262,-500.0,0.00021541,2]
[376513357,1754003453272,-177.91230845,0.00021541,2]
[376513358,1754003453281,-502.17933325,0.00021541,2]
[376513359,1754003453291,-500.0,0.00021541,2]
[376513360,1754003453300,-500.92416832,0.00021541,2]
[376513361,1754003453309,-216.31892323,0.00021541,2]
[376513362,1754003453319,-500.0,0.00021541,2]
[376513363,1754003453330,-500.0,0.00021541,2]
[376513364,1754003453339,-500.0,0.00021541,2]
[376513365,1754003453351,-500.0,0.00021541,2]
[376513366,1754003453361,-500.0,0.00021541,2]
[376513367,1754003453370,-500.0,0.00021541,2]
[376513368,1754003453380,-500.0,0.00021545,2]
[376513369,1754003453389,-160.835054,0.00021555,5]
[376513370,1754003453398,-150.0,0.00021559,2]
[376513371,1754003453408,-500.0,0.00021559,2]
[376513372,1754003453417,-151.0,0.00021576,2]
[376513373,1754003453426,-151.0,0.00021576,2]
[376513374,1754003453435,-151.0,0.00021576,2]
[376513375,1754003453445,-500.0,0.00021576,2]
[376513376,1754003453455,-500.0,0.00021576,2]
[376513377,1754003453465,-500.0,0.00021587,2]
[376513378,1754003453475,-500.0,0.00021587,2]
[376513379,1754003453488,-500.0,0.00021587,2]
[376513380,1754003453498,-661.7,0.00021606,4]
[376513381,1754003453507,-604.70589761,0.00021631,2]
[376513382,1754003453518,-382.55498834,0.00021643,2]
[376513383,1754003453529,-1266.97,0.00021643,2]
[376513384,1754003453539,-502.84,0.00021643,2]
[376513385,1754003453548,-151.0,0.00021643,2]
[376513386,1754003453557,-151.0,0.00021643,2]
[376513387,1754003453567,-151.0,0.00021643,2]
[376513388,1754003453576,-151.0,0.00021643,2]
[376513389,1754003453586,-151.0,0.00021643,2]
[376513390,1754003453596,-1808.35,0.00021643,2]
[376513391,1754003453605,-460.0,0.00021643,2]
[376513392,1754003453615,-460.0,0.00021643,2]
[376513393,1754003453624,-460.0,0.00021643,2]
[376513394,1754003453633,-151.0,0.00021643,2]
[376513395,1754003453643,-462.57,0.00021643,2]
[376513396,1754003453653,-151.399161,0.00021643,2]
[376513397,1754003453662,-460.0,0.00021643,2]
[376513398,1754003453672,-460.0,0.00021643,2]
[376513399,1754003453681,-151.0,0.00021643,2]
[376513400,1754003453690,-1017.0,0.00021643,2]
[376513401,1754003453700,-460.0,0.00021643,2]
[376513402,1754003453709,-478.58,0.00021643,2]
[376513403,1754003453718,-460.0,0.00021643,2]
[376513404,1754003453728,-582.11,0.00021643,2]
[376513405,1754003453739,-151.0,0.00021643,2]
[376513406,1754003453748,-460.0,0.00021643,2]
[376513407,1754003453759,-589.92,0.00021643,2]
[376513408,1754003453769,-460.0,0.00021643,2]
[376513409,1754003453779,-2002.44,0.00021643,2]
[376513410,1754003453788,-460.0,0.00021643,2]
[376513411,1754003453798,-460.0,0.00021643,2]
[376513412,1754003453807,-460.0,0.00021643,2]
[376513413,1754003453816,-1075.79,0.00021643,2]
[376513414,1754003453826,-469.04,0.00021643,2]
[376513415,1754003453835,-529.38,0.00021643,2]
[376513416,1754003453844,-746.47,0.00021643,2]
[376513417,1754003453853,-155.07713,0.00021643,2]
[376513418,1754003453862,-151.0,0.00021643,2]
[376513419,1754003453873,-460.0,0.00021643,2]
[376513420,1754003453884,-545.42,0.00021643,2]
[376513421,1754003453893,-460.0,0.00021643,2]
[376513422,1754003453902,-634.35,0.00021643,2]
[376513423,1754003453912,-151.0,0.00021643,2]
[376513424,1754003453922,-1276.49,0.00021643,2]
[376513425,1754003453931,-460.0,0.00021643,2]
[376513426,1754003453941,-151.0,0.00021643,2]
[376513427,1754003453950,-151.0,0.00021643,2]
[376513428,1754003453961,-460.0,0.00021643,2]
[376513429,1754003453970,-1321.52,0.00021643,2]
[376513430,1754003453980,-460.0,0.00021643,2]
[376513431,1754003453988,-151.0,0.00021643,2]
[376513432,1754003454001,-610.78,0.00021643,2]
[376513433,1754003454010,-460.0,0.00021643,2]
[376513434,1754003454019,-606.53,0.00021643,2]
[376513435,1754003454028,-1529.08,0.00021643,2]
[376513436,1754003454038,-588.71,0.00021643,2]
[376513437,1754003454048,-1215.59,0.00021643,2]
[376513438,1754003454057,-3875.56,0.00021643,2]
[376513439,1754003454066,-843.86,0.00021643,2]
[376513440,1754003454075,-999.44,0.00021643,2]
[376513441,1754003454084,-1744.97,0.00021643,2]
[376513442,1754003454094,-151.0,0.00021652,2]
[376513443,1754003454103,-151.0,0.00021673,2]
[376513444,1754003454112,-151.0,0.00021673,2]
[376513445,1754003454122,-566.78334563,0.00021739,2]
[376513446,1754003454131,-349.98737921,0.00021792,2]
[376513447,1754003454140,-160.835054,0.00021797,6]
[376513448,1754003454151,-500.0,0.00021804,2]
[376513449,1754003454160,-1014.4452744,0.00021848,2]
[376513450,1754003454169,-644.41917488,0.00021862,2]
[376513451,1754003454178,-168.0,0.0002189,2]
[376513452,1754003454187,-168.0,0.00021905,2]
[376513453,1754003454196,-151.0,0.00021917,2]
[376513454,1754003454206,-151.0,0.00021917,2]
[376513455,1754003454215,-151.0,0.00021917,2]
[376513456,1754003454225,-1266.97,0.00021917,2]
[376513457,1754003454235,-512.35948221,0.00021917,2]
[376513458,1754003454245,-502.84,0.00021917,2]
[376513459,1754003454254,-1808.35,0.00021917,2]
[376513460,1754003454264,-460.0,0.00021917,2]
[376513461,1754003454273,-460.0,0.00021917,2]
[376513462,1754003454282,-421.53228679,0.00021917,2]
[376513463,1754003454291,-462.57,0.00021917,2]
[376513464,1754003454301,-460.0,0.00021917,2]
[376513465,1754003454310,-460.0,0.00021917,2]
[376513466,1754003454320,-1017.0,0.00021917,2]
[376513467,1754003454329,-460.0,0.00021917,2]
[376513468,1754003454338,-478.58,0.00021917,2]
[376513469,1754003454347,-460.0,0.00021917,2]
[376513470,1754003454356,-582.11,0.00021917,2]
[376513471,1754003454365,-460.0,0.00021917,2]
[376513472,1754003454375,-589.92,0.00021917,2]
[376513473,1754003454384,-460.0,0.00021917,2]
[376513474,1754003454394,-2002.44,0.00021917,2]
[376513475,1754003454403,-460.0,0.00021917,2]
[376513476,1754003454412,-460.0,0.00021917,2]
[376513477,1754003454421,-460.0,0.00021917,2]
[376513478,1754003454430,-1075.79,0.00021917,2]
[376513479,1754003454439,-500.0,0.00021917,2]
[376513480,1754003454448,-500.0,0.00021917,2]
[376513481,1754003454458,-500.0,0.00021917,2]
[376513482,1754003454467,-500.0,0.00021917,2]
[376513483,1754003454477,-500.0,0.00021917,2]
[376513484,1754003454486,-500.0,0.00021917,2]
[376513485,1754003454497,-500.0,0.00021917,2]
[376513486,1754003454506,-500.0,0.00021917,2]
[376513487,1754003454515,-500.0,0.00021917,2]
[376513488,1754003454525,-500.0,0.00021917,2]
[376513489,1754003454534,-500.0,0.00021917,2]
[376513490,1754003454543,-469.04,0.00021917,2]
[376513491,1754003454553,-529.38,0.00021917,2]
[376513492,1754003454563,-746.47,0.00021917,2]
[376513493,1754003454572,-460.0,0.00021917,2]
[376513494,1754003454582,-545.42,0.00021917,2]
[376513495,1754003454591,-460.0,0.00021917,2]
[376513496,1754003454604,-634.35,0.00021917,2]
[376513497,1754003454614,-1276.49,0.00021917,2]
[376513498,1754003454623,-460.0,0.00021917,2]
[376513499,1754003454632,-460.0,0.00021917,2]
[376513500,1754003454642,-1321.52,0.00021917,2]
[376513501,1754003454652,-460.0,0.00021917,2]
[376513502,1754003454661,-610.78,0.00021917,2]
[376513503,1754003454672,-460.0,0.00021917,2]
[376513504,1754003454681,-606.53,0.00021917,2]
[376513505,1754003454690,-1529.08,0.00021917,2]
[376513506,1754003454700,-588.71,0.00021917,2]
[376513507,1754003454709,-1215.59,0.00021917,2]
[376513508,1754003454719,-3875.56,0.00021917,2]
[376513509,1754003454728,-843.86,0.00021917,2]
[376513510,1754003454737,-999.44,0.00021917,2]
[376513511,1754003454748,-1744.97,0.00021917,2]
[376513512,1754003454758,-200.0,0.00021918,2]
[376513513,1754003454768,-150.11246695,0.00021918,2]
[376513514,1754003454777,-360.0,0.00021963,2]
[376513515,1754003454787,-17059.80685321,0.0002198,2]
[376513516,1754003454796,-2140.55,0.00022,7]
[376513517,1754003454805,-160.835054,0.00022,3]
[376513518,1754003454815,-153.0,0.00022,2]
[376513519,1754003454824,-1871.19,0.00022,2]
[376513520,1754003454835,-168.0,0.00022048,2]
[376513521,1754003454845,-168.0,0.0002205,2]
[376513522,1754003454855,-1000.0,0.00022089,2]
[376513523,1754003454864,-500.0,0.00022089,2]
[376513524,1754003454875,-500.0,0.00022089,2]
[376513525,1754003454888,-1000.0,0.00022089,2]
[376513526,1754003454897,-1012.21026257,0.00022089,2]
[376513527,1754003454907,-500.0,0.00022089,2]
[376513528,1754003454917,-1000.0,0.00022089,2]
[376513529,1754003454927,-185.05189559,0.00022089,2]
[376513530,1754003454936,-500.0,0.00022089,2]
[376513531,1754003454945,-151.0,0.000221,10]
[376513532,1754003454956,-151.0,0.00022107,7]
[376513533,1754003454965,-250.0,0.00022107,2]
[376513534,1754003454975,-500.0,0.00022124,2]
[376513535,1754003454984,-502.36331288,0.00022124,2]
[376513536,1754003454994,-500.0,0.00022135,2]
[376513537,1754003455003,-168.0,0.00022143,2]
[376513538,1754003455012,-661.7,0.00022158,4]
[376513539,1754003455023,-1266.97,0.00022191,2]
[376513540,1754003455033,-502.84,0.00022191,2]
[376513541,1754003455043,-1808.35,0.00022191,2]
[376513542,1754003455052,-460.0,0.00022191,2]
[376513543,1754003455061,-460.0,0.00022191,2]
[376513544,1754003455071,-462.57,0.00022191,2]
[376513545,1754003455080,-460.0,0.00022191,2]
[376513546,1754003455089,-460.0,0.00022191,2]
[376513547,1754003455099,-1017.0,0.00022191,2]
[376513548,1754003455107,-460.0,0.00022191,2]
[376513549,1754003455117,-478.58,0.00022191,2]
[376513550,1754003455126,-460.0,0.00022191,2]
[376513551,1754003455135,-582.11,0.00022191,2]
[376513552,1754003455145,-460.0,0.00022191,2]
[376513553,1754003455156,-589.92,0.00022191,2]
[376513554,1754003455165,-460.0,0.00022191,2]
[376513555,1754003455175,-2002.44,0.00022191,2]
[376513556,1754003455184,-460.0,0.00022191,2]
[376513557,1754003455194,-460.0,0.00022191,2]
[376513558,1754003455204,-460.0,0.00022191,2]
[376513559,1754003455214,-1075.79,0.00022191,2]
[376513560,1754003455224,-500.0,0.00022191,2]
[376513561,1754003455234,-469.04,0.00022191,2]
[376513562,1754003455244,-529.38,0.00022191,2]
[376513563,1754003455254,-746.47,0.00022191,2]
[376513564,1754003455263,-460.0,0.00022191,2]
[376513565,1754003455272,-545.42,0.00022191,2]
[376513566,1754003455281,-460.0,0.00022191,2]
[376513567,1754003455291,-634.35,0.00022191,2]
[376513568,1754003455300,-1276.49,0.00022191,2]
[376513569,1754003455310,-460.0,0.00022191,2]
[376513570,1754003455320,-151.0,0.00022191,7]
[376513571,1754003455329,-460.0,0.00022191,2]
[376513572,1754003455339,-1321.52,0.00022191,2]
[376513573,1754003455348,-460.0,0.00022191,2]
[376513574,1754003455357,-610.78,0.00022191,2]
[376513575,1754003455366,-460.0,0.00022191,2]
[376513576,1754003455376,-606.53,0.00022191,2]
[376513577,1754003455385,-1529.08,0.00022191,2]
[376513578,1754003455394,-151.0,0.00022191,7]
[376513579,1754003455403,-588.71,0.00022191,2]
[376513580,1754003455412,-3875.56,0.00022191,2]
[376513581,1754003455421,-1215.59,0.00022191,2]
[376513582,1754003455430,-843.86,0.00022191,2]
[376513583,1754003455440,-999.44,0.00022191,2]
[376513584,1754003455450,-1744.97,0.00022191,2]
[376513585,1754003455461,-600.0,0.00022195,2]
[376513586,1754003455472,-4749.06,0.000222,7]
[376513587,1754003455482,-151.0,0.000222,7]
[376513588,1754003455492,-168.0,0.00022205,2]
[376513589,1754003455503,-168.0,0.00022275,2]
[376513590,1754003455513,-168.0,0.00022286,2]
[376513591,1754003455523,-168.0,0.00022326,2]
[376513592,1754003455533,-168.0,0.00022336,2]
[376513593,1754003455542,-168.0,0.00022346,2]
[376513594,1754003455552,-151.0,0.00022352,7]
[376513595,1754003455563,-151.0,0.00022352,7]
[376513596,1754003455572,-604.70589761,0.0002239,2]
[376513597,1754003455581,-2960.86410916,0.0002239,2]
[376513598,1754003455591,-1000.0,0.000224,2]
[376513599,1754003455600,-168.0,0.00022428,2]
[376513600,1754003455609,-151.0,0.00022465,7]
[376513601,1754003455619,-1266.97,0.00022465,2]
[376513602,1754003455628,-151.0,0.00022465,7]
[376513603,1754003455637,-502.84,0.00022465,2]
[376513604,1754003455647,-151.0,0.00022465,7]
[376513605,1754003455657,-151.0,0.00022465,7]
[376513606,1754003455667,-151.0,0.00022465,7]
[376513607,1754003455677,-151.0,0.00022465,7]
[376513608,1754003455688,-1808.35,0.00022465,2]
[376513609,1754003455699,-581.54974989,0.00022465,2]
[376513610,1754003455710,-460.0,0.00022465,2]
[376513611,1754003455721,-462.57,0.00022465,2]
[376513612,1754003455730,-460.0,0.00022465,2]
[376513613,1754003455739,-460.0,0.00022465,2]
[376513614,1754003455749,-1017.0,0.00022465,2]
[376513615,1754003455759,-194.75650409,0.00022465,2]
[376513616,1754003455769,-478.58,0.00022465,2]
[376513617,1754003455779,-460.0,0.00022465,2]
[376513618,1754003455789,-582.11,0.00022465,2]
[376513619,1754003455799,-151.0,0.00022465,7]
[376513620,1754003455808,-460.0,0.00022465,2]
[376513621,1754003455817,-460.0,0.00022465,2]
[376513622,1754003455827,-589.92,0.00022465,2]
[376513623,1754003455836,-2002.44,0.00022465,2]
[376513624,1754003455846,-460.0,0.00022465,2]
[376513625,1754003455856,-460.0,0.00022465,2]
[376513626,1754003455865,-507.17855986,0.00022465,2]
[376513627,1754003455875,-1075.79,0.00022465,2]
[376513628,1754003455888,-363.48964383,0.00022465,2]
[376513629,1754003456019,-469.04,0.00022465,2]
[376513630,1754003456030,-529.38,0.00022465,2]
[376513631,1754003456040,-746.47,0.00022465,2]
[376513632,1754003456050,-269.27409,0.00022465,7]
[376513633,1754003456060,-460.0,0.00022465,2]
[376513634,1754003456070,-545.42,0.00022465,2]
[376513635,1754003456079,-460.0,0.00022465,2]
[376513636,1754003456088,-634.35,0.00022465,2]
[376513637,1754003456098,-1276.49,0.00022465,2]
[376513638,1754003456107,-460.0,0.00022465,2]
[376513639,1754003456117,-460.0,0.00022465,2]
[376513640,1754003456127,-1321.52,0.00022465,2]
[376513641,1754003456136,-460.0,0.00022465,2]
[376513642,1754003456146,-610.78,0.00022465,2]
[376513643,1754003456155,-460.0,0.00022465,2]
[376513644,1754003456164,-1529.08,0.00022465,2]
[376513645,1754003456174,-606.53,0.00022465,2]
[376513646,1754003456183,-588.71,0.00022465,2]
[376513647,1754003456192,-3875.56,0.00022465,2]
[376513648,1754003456202,-1215.59,0.00022465,2]
[376513649,1754003456211,-843.86,0.00022465,2]
[376513650,1754003456220,-999.44,0.00022465,2]
[376513651,1754003456229,-1744.97,0.00022465,2]
[376513652,1754003456239,-500.0,0.00022466,2]
[376513653,1754003456249,-431692.82160272,0.0002249,7]
[376513654,1754003456258,-116140.1013339,0.0002249,7]
[376513655,1754003456278,-500.0,0.0002249,7]
[376513656,1754003456289,-14109.05579479,0.0002249,7]
[376513675,1754003609994,1000.0,0.00018246,2]
[376513682,1754004104404,325.927296,0.00013699,2]
[376513747,1754004632047,-300.0,0.00019049,2]
[376513749,1754004632058,-196.3,0.00019049,2]
[376513754,1754004632089,-651.00932369,0.00019049,2]
[376513755,1754004632107,-235.69067631,0.00019049,2]
[376513756,1754004632122,-12432.11236504,0.0001905,2]
[376513757,1754004632135,-171.66856872,0.00019078,2]
[376513758,1754004632148,-320.91148943,0.00019078,2]
[376513759,1754004632159,-232.31808378,0.00019078,2]
[376513760,1754004632169,-160.0,0.00019141,2]
[376513761,1754004632180,-167.0,0.00019151,3]
[376513762,1754004632192,-151.0,0.00019166,2]
[376513763,1754004632203,-744.45,0.00019168,3]
[376513764,1754004632216,-1123.0,0.00019177,2]
[376513765,1754004632230,-462.53672734,0.00019178,2]
[376513766,1754004632246,-460.0,0.00019178,2]
[376513767,1754004632259,-460.0,0.00019178,2]
[376513768,1754004632269,-460.0,0.00019178,2]
[376513769,1754004632281,-460.0,0.00019178,2]
[376513770,1754004632291,-460.0,0.00019178,2]
[376513771,1754004632301,-460.0,0.00019178,2]
[376513772,1754004632312,-460.0,0.00019178,2]
[376513773,1754004632323,-460.0,0.00019178,2]
[376513774,1754004632335,-460.0,0.00019178,2]
[376513775,1754004632345,-460.0,0.00019178,2]
[376513776,1754004632361,-460.0,0.00019178,2]
[376513777,1754004632371,-460.0,0.00019178,2]
[376513778,1754004632382,-460.0,0.00019178,2]
[376513779,1754004632394,-460.0,0.00019178,2]
[376513780,1754004632405,-460.0,0.00019178,2]
[376513781,1754004632416,-458.03914423,0.00019178,2]
[376513782,1754004632430,-1.96085577,0.00019178,2]
[376513783,1754004632442,-460.0,0.00019178,2]
[376513784,1754004632453,-460.0,0.00019178,2]
[376513785,1754004632464,-460.0,0.00019178,2]
[376513786,1754004632476,-460.0,0.00019178,2]
[376513787,1754004632487,-365.76991472,0.00019178,2]
[376513788,1754004632724,-1966.53008528,0.00019178,2]
[376513789,1754004632736,-460.0,0.00019178,2]
[376513790,1754004632747,-460.0,0.00019178,2]
[376513791,1754004632758,-460.0,0.00019178,2]
[376513792,1754004632769,-334.67780035,0.00019178,2]
[376513793,1754004632780,-460.0,0.00019178,2]
[376513794,1754004632790,-460.0,0.00019178,2]
[376513795,1754004632801,-460.0,0.00019178,2]
[376513796,1754004632811,-460.0,0.00019178,2]
[376513797,1754004632822,-460.0,0.00019178,2]
[376513798,1754004632832,-460.0,0.00019178,2]
[376513799,1754004632843,-460.0,0.00019178,2]
[376513800,1754004632854,-460.0,0.00019178,2]
[376513801,1754004632865,-460.0,0.00019178,2]
[376513802,1754004632876,-460.0,0.00019178,2]
[376513803,1754004632887,-460.0,0.00019178,2]
[376513804,1754004632897,-460.0,0.00019178,2]
[376513805,1754004632908,-460.0,0.00019178,2]
[376513806,1754004632918,-460.0,0.00019178,2]
[376513807,1754004632929,-460.0,0.00019178,2]
[376513808,1754004632941,-460.0,0.00019178,2]
[376513809,1754004632951,-460.0,0.00019178,2]
[376513810,1754004632962,-466.79596382,0.00019178,2]